Cogmind - Beta 14 @@@ ROGUE MODE // 2024.08.15 @ 13:09:15 Player: Zaros426 Result: Destroyed by G-34 Mercenary with Small Laser Performance ------------- Evolutions (0) 0 Regions Visited (4) 800 Robots Destroyed (34) 170 Value Destroyed (957) 957 Prototype IDs (24) 480 Alien Tech Used (0) 0 Bonus (300) 300 TOTAL SCORE: 2707 Bonus ------- Aligned with FarCom 300 Cogmind --------- Core Integrity 0/250 Matter 300/300 Energy 265/265 System Corruption 0% Temperature Cool (6) Movement Treading (160) Location -9/Mines Parts ------- > --- POWER (1) -------- Improved Ion Engine > --- PROPULSION (2) --- Light Treads Light Treads > --- UTILITY (2) ------ Improved Heat Sink Large Storage Unit > --- WEAPON (2) ------- Particle Gun > --- INVENTORY (15) --- Ion Engine Light Treads Large Storage Unit Structural Scanner Experimental Sensor Array Signal Interpreter Signal Interpreter Seismic Detector Cloak of Protection Light Armor Plating Light Armor Plating Hacking Suite Signal Generator Peak State ------------ > --- POWER ------------ Improved Ion Engine > --- PROPULSION ------- Light Treads Light Treads > --- UTILITY ---------- Large Storage Unit Experimental Sensor Array > --- WEAPON ----------- Particle Gun Beam Cannon > --- INVENTORY -------- Ion Engine Light Treads Light Treads Improved Heat Sink Large Storage Unit Structural Scanner Signal Interpreter Signal Interpreter Seismic Detector Light Armor Plating Light Armor Plating Hacking Suite EM Pulse Gun Signal Generator [Rating: 19] Favorites ----------- Power Improved Ion Engine Engine Improved Ion Engine Propulsion Light Treads Treads Light Treads Leg Aluminum Leg Utility Improved Heat Sink Device Improved Heat Sink Storage Large Storage Unit Processor Signal Interpreter Weapon Beam Cannon Energy Gun Particle Gun Energy Cannon Beam Cannon Build | -11 -10 -10 -10 -9 ------- Run | Yrd Mat Min Exi Min Slots Evolved . | . . . . . Power . | . . . . . Propulsion . | . . . . . Utility . | . . . . . Weapon . | . . . . . Parts Attached 28 | 9 8 7 2 2 Power 4 | 1 1 2 . . Engine 4 | 1 1 2 . . Core . | . . . . . Reactor . | . . . . . Propulsion 9 | 4 2 2 . 1 Treads 7 | 2 2 2 . 1 Leg 2 | 2 . . . . Wheel . | . . . . . Hover . | . . . . . Flight . | . . . . . Utility 9 | 2 3 2 2 . Device 5 | 1 1 1 2 . Storage 3 | 1 2 . . . Processor 1 | . . 1 . . Hackware . | . . . . . Protection . | . . . . . Artifact . | . . . . . Weapon 6 | 2 2 1 . 1 Energy Gun 5 | 2 1 1 . 1 Energy Cannon 1 | . 1 . . . Ballistic Gun . | . . . . . Ballistic Cannon . | . . . . . Launcher . | . . . . . Special Weapon . | . . . . . Impact Weapon . | . . . . . Slashing Weapon . | . . . . . Piercing Weapon . | . . . . . Special Melee Weapon . | . . . . . Unidentified Prototypes 1 | . . . 1 . Parts Lost 7 | . 2 2 . 3 Power 2 | . 1 1 . . Propulsion 2 | . . 1 . 1 Utility . | . . . . . Weapon 3 | . 1 . . 2 Highest Loss Streak 2 | . 1 1 . 2 To Critical Strikes . | . . . . . Average Slot Usage (%) 98 | . 99 99 99 95 Engine 13 | . 13 13 14 14 Treads 26 | . 24 27 28 27 Leg 1 | . 3 . . . Device 13 | . 14 11 13 14 Storage 14 | . 14 14 14 14 Energy Gun 14 | . 15 13 14 15 Energy Cannon 12 | . 12 14 14 9 Peak Build Rating 19 | 7 10 13 19 14 Average Rating 11 | 5 8 11 13 13 On Entrance 8 | . 7 9 13 14 Naked Turns . | . . . . . Heaviest Build 34 | 15 31 34 34 34 Greatest Support 40 | 20 40 40 40 40 Greatest Overweight (x) 4 | 4 . 1 . . Average Overweight (x) . | . . . . . Largest Inventory Capacity 15 | 8 15 15 15 15 Average Capacity 14 | 7 12 15 15 15 Most Carried 15 | 2 7 15 15 15 Average Carried 10 | 1 4 13 14 14 Final Capacity 15 | 8 15 15 15 15 Final Carried 15 | 2 7 15 15 13 Class Distribution -------------------- 53% | Scavenger-Mutant 46% | Mutant Dominant Class ---------------- Mutant | -10/Materials Scavenger-Mutant | -10/Mines Scavenger-Mutant | -10/Exiles Scavenger-Mutant | -9/Mines Resources | -11 -10 -10 -10 -9 ----------- Run | Yrd Mat Min Exi Min Matter Collected 449 | 257 103 60 . 29 Remotely . | . . . . . Salvage Created 1366 | 125 615 391 . 235 Parts 73 | 3 46 13 . 11 Haulers Intercepted 2 | . 2 . . . Recyclers Shooed . | . . . . . Parts Field Recycled . | . . . . . Retrieved Matter . | . . . . . Parts Self-Destructed . | . . . . . Prevented . | . . . . . Kills | -11 -10 -10 -10 -9 ------- Run | Yrd Mat Min Exi Min Combat Hostiles Destroyed 27 | . 13 6 . 8 Guns 11 | . 4 1 . 6 Cannons 16 | . 9 5 . 2 Classes Destroyed 10 | 2 6 1 . 1 Worker 1 | . 1 . . . Tunneler 1 | 1 . . . . Hauler 2 | . 2 . . . Recycler 1 | 1 . . . . Operator 1 | . 1 . . . Watcher 3 | . 3 . . . Swarmer 3 | . 3 . . . Grunt 20 | . 10 4 . 6 Sentry 2 | . . 2 . . Assembled 2 | . . . . 2 Best Kill Streak 5 | 2 3 2 . 5 Combat Bots Only 5 | . 3 2 . 5 Max Kills in Single Turn 2 | 1 2 1 . 1 Gunslinging . | . . . . . Exploded . | . . . . . Melee . | . . . . . Uniques/NPCs Destroyed . | . . . . . Combat | -11 -10 -10 -10 -9 -------- Run | Yrd Mat Min Exi Min Hostile Shots Fired 114 | . 45 29 . 40 Missed 27 | . 7 6 . 14 Damage Taken 1144 | . 461 334 . 349 Core 253 | . 112 28 . 113 Absorbed by Shields . | . . . . . Core Remaining (%) 100 | 100 . . . . Volleys Fired 99 | 4 43 18 1 33 Largest 2 | 2 2 2 2 2 Hottest 125 | 90 110 125 125 125 Shots Fired 181 | 8 84 34 2 53 Gun 112 | 8 43 17 1 43 Cannon 69 | . 41 17 1 10 Launcher . | . . . . . Special . | . . . . . Kinetic . | . . . . . Thermal 152 | 4 69 34 2 43 Explosive . | . . . . . Electromagnetic 29 | 4 15 . . 10 Robot Hit Streak 11 | 6 6 7 . 11 Robot Miss Streak 5 | 1 5 2 . 2 Penetration Max . | . . . . . Secondary Targets . | . . . . . Shots Hit Robots 103 | 7 47 21 . 28 Core Hits 51 | 3 26 11 . 11 Critical Kills . | . . . . . Critical Parts Destroyed . | . . . . . Critical Strikes 6 | 1 3 . . 2 Burn 6 | 1 3 . . 2 Melee Attacks . | . . . . . Impact . | . . . . . Slashing . | . . . . . Piercing . | . . . . . Sneak Attacks . | . . . . . Combat Hostiles . | . . . . . Follow-up Attacks . | . . . . . Damage Inflicted 1785 | 91 929 327 . 438 Guns 866 | 91 290 120 . 365 Cannons 713 | . 436 207 . 70 Explosions 203 | . 203 . . . Melee . | . . . . . Ramming 3 | . . . . 3 Kinetic . | . . . . . Thermal 1441 | 50 664 327 . 400 Explosive 203 | . 203 . . . Electromagnetic 138 | 41 62 . . 35 Impact . | . . . . . Slashing . | . . . . . Piercing . | . . . . . Highest Corruption . | . . . . . Average Corruption . | . . . . . Corruption Purged . | . . . . . Corruption Blocked . | . . . . . Overload Shots . | . . . . . Overflow Damage 16 | . 14 2 . . Projectiles 16 | . 14 2 . . Explosions . | . . . . . Melee . | . . . . . Knockbacks . | . . . . . Impact . | . . . . . Kinetic . | . . . . . Secondary . | . . . . . Self-Inflicted Damage . | . . . . . Shots . | . . . . . Rammed 2 | . . . . 2 Targets Rammed 2 | . . . . 2 Kicked . | . . . . . Crushed . | . . . . . Highest Temperature 333 | 90 333 224 24 209 Average Temperature 75 | 41 89 69 16 60 Received Heat Transfer 477 | . 228 159 . 90 Effects 4 | . 1 3 . . Energy Bleed 1 | . 1 . . . Interference 3 | . . 3 . . Siege Activations . | . . . . . Robots Corrupted . | . . . . . Combat Hostiles . | . . . . . Parts Fried 1 | 1 . . . . Impact Corruptions . | . . . . . Robots Melted . | . . . . . Combat Hostiles . | . . . . . Parts Melted 8 | 1 2 3 . 2 Heat Transferred 3885 | 222 1813 777 . 1073 Parts Sabotaged . | . . . . . Parts Stolen . | . . . . . Parts Stripped . | . . . . . Power Chain Reactions . | . . . . . Alert | -11 -10 -10 -10 -9 ------- Run | Yrd Mat Min Exi Min Peak Influence 388 | 10 388 191 . 105 Initial 81 | . 6 81 . . Average 114 | 4 222 74 . 30 Maximum Alert Level 1 | . 1 . . . Low Security (%) 80 | 100 45 100 . 100 Level 1 19 | . 54 . . . Level 2 . | . . . . . Level 3 . | . . . . . Level 4 . | . . . . . Level 5 . | . . . . . High Security . | . . . . . Max Security . | . . . . . Squads Dispatched 2 | . 2 . . . Investigation 1 | . 1 . . . Extermination . | . . . . . Reinforcement 1 | . 1 . . . Assault . | . . . . . Garrison . | . . . . . Intercept . | . . . . . Searches Triggered . | . . . . . Construction Impeded . | . . . . . Haulers Reinforced . | . . . . . Active Scanning Responses . | . . . . . Cargo Convoy Interrupts . | . . . . . Stealth | -11 -10 -10 -10 -9 --------- Run | Yrd Mat Min Exi Min Distress Signals . | . . . . . Communications Jammed . | . . . . . Distress Signals . | . . . . . Times Spotted 35 | . 20 5 . 10 Peak Tracking Total 3 | . 3 2 . 3 Tactical Retreats 2 | . 1 . . 1 Traps | -11 -10 -10 -10 -9 ------- Run | Yrd Mat Min Exi Min Traps Triggered 1 | . 1 . . . Indirectly . | . . . . . Trap Hack Attempts . | . . . . . Triggered . | . . . . . Disarmed . | . . . . . Reprogrammed . | . . . . . Reused . | . . . . . Traps Extracted . | . . . . . Installed . | . . . . . Triggered . | . . . . . Objects Rigged 4 | . 4 . . . Exploded 1 | . 1 . . . Machines | -11 -10 -10 -10 -9 ---------- Run | Yrd Mat Min Exi Min Machines Disabled 1 | . 1 . . . Max in Single Turn 1 | . 1 . . . Machines Repaired . | . . . . . Machines Dismantled . | . . . . . Machines Sabotaged . | . . . . . Overloaded Fab Kills . | . . . . . Hacking | -11 -10 -10 -10 -9 --------- Run | Yrd Mat Min Exi Min Machines Accessed 8 | . 6 . 2 . Terminals 6 | . 6 . . . Fabricators . | . . . . . Repair Stations . | . . . . . Recycling Units . | . . . . . Scanalyzers . | . . . . . Garrison Access . | . . . . . Total Hacks 35 | . 11 . 24 . Successful 33 | . 9 . 24 . Failed 2 | . 2 . . . Catastrophic . | . . . . . Database Lockouts . | . . . . . Manual 7 | . 6 . 1 . Terminals 11 | . 11 . . . Fabricators . | . . . . . Repair Stations . | . . . . . Recycling Units . | . . . . . Scanalyzers . | . . . . . Garrison Access . | . . . . . Terminal Hacks 30 | . 6 . 24 . Record 23 | . . . 23 . Robot Analysis 2 | . 2 . . . Branch Access Points 1 | . 1 . . . Alert Level 1 | . 1 . . . Locate Traps 2 | . 2 . . . Derelict Proto ID Bank 1 | . . . 1 . Fabricator Hacks . | . . . . . Repair Station Hacks . | . . . . . Recycling Unit Hacks . | . . . . . Scanalyzer . | . . . . . Garrison Access Hacks . | . . . . . Unauthorized Hacks 3 | . 3 . . . Terminals 3 | . 3 . . . Botnet 2 | . 2 . . . Detonate 1 | . 1 . . . Fabricators . | . . . . . Repair Stations . | . . . . . Recycling Units . | . . . . . Scanalyzers . | . . . . . Garrison Access . | . . . . . Data Cores Recovered 1 | . 1 . . . Used . | . . . . . Hacking Detections 6 | . 6 . . . Full Trace Events . | . . . . . Feedback Events . | . . . . . Feedback Blocked . | . . . . . Robot Schematics Acquired . | . . . . . Robots Built . | . . . . . Authchips . | . . . . . Time . | . . . . . Total Robot Build Rating . | . . . . . Part Schematics Acquired . | . . . . . Parts Built . | . . . . . Authchips . | . . . . . Time . | . . . . . Total Part Build Rating . | . . . . . Parts Repaired . | . . . . . Time . | . . . . . Parts Recycled . | . . . . . Recycled Matter . | . . . . . Retrieved Matter . | . . . . . Retrieved Components . | . . . . . Parts Scanalyzed . | . . . . . Part Schematics Acquired . | . . . . . Parts Damaged . | . . . . . Bothacking | -11 -10 -10 -10 -9 ------------ Run | Yrd Mat Min Exi Min Used RIF Installer . | . . . . . Robots Hacked . | . . . . . Non-combat . | . . . . . Combat . | . . . . . Robot Hacks Applied . | . . . . . Relay Couplers Released . | . . . . . Fabnet Peak Effective % . | . . . . . Robots Rewired . | . . . . . Allies Hacked . | . . . . . Hacks Repelled . | . . . . . Allies | -11 -10 -10 -10 -9 -------- Run | Yrd Mat Min Exi Min Total Allies . | . . . . . Largest Group . | . . . . . Highest-Rated Group . | . . . . . Highest-Rated Ally . | . . . . . Total Orders . | . . . . . Ally Attacks . | . . . . . Total Damage . | . . . . . Kills . | . . . . . Allies Corrupted . | . . . . . Allies Melted . | . . . . . Intel | -11 -10 -10 -10 -9 ------- Run | Yrd Mat Min Exi Min Robot Analysis Total 2 | . 2 . . . Derelict Logs Recovered 1 | . . 1 . . Drone Launches . | . . . . . Drone Recoveries . | . . . . . Exploration | -11 -10 -10 -10 -9 ------------- Run | Yrd Mat Min Exi Min Turns Passed 3336 | 78 1037 1014 462 745 Spaces Moved 1548 | 43 552 580 282 91 Core 11 | 11 . . . . Treads 1422 | 5 464 580 282 91 Legs 115 | 27 88 . . . Wheels . | . . . . . Hover . | . . . . . Flight . | . . . . . Fastest Speed 50 | 50 120 160 160 160 Average Speed 156 | 119 153 160 160 160 Slowest Speed 250 | 250 160 240 160 160 Overloaded Moves . | . . . . . Propulsion Burnouts . | . . . . . Robots Hopped . | . . . . . Cave-ins Triggered . | . . . . . Exploration Rate (%) 55 | 4 94 98 67 16 Regions Visited 4 Branch Regions 3 Pre-discovered Areas 1 | . . . 1 . Known Exits Taken 1 | . 1 . . . Unknown Exits Taken 3 | 1 . 1 1 . Scrap Searched 3 | . . 3 . . Spaces Dug . | . . . . . Terrain Destroyed 22 | . 22 . . . Melee . | . . . . . Projectile . | . . . . . AOE 22 | . 22 . . . Terrain Rammed . | . . . . . Walls Destroyed . | . . . . . Machines Disabled . | . . . . . Actions | -11 -10 -10 -10 -9 --------- Run | Yrd Mat Min Exi Min Total 2272 | 57 658 628 293 636 Wait 557 | . 38 11 . 508 Move 1544 | 42 551 579 281 91 Hop . | . . . . . Pick Up 27 | 2 11 10 4 . Fast Attach 10 | 7 1 2 . . Attach 6 | . 2 1 1 2 Detach 1 | . . . 1 . Swap 12 | 2 5 4 1 . Drop 14 | . 7 3 4 . Fire 99 | 4 43 18 1 33 Melee . | . . . . . Ram . | . . . . . Kick . | . . . . . Crush 2 | . . . . 2 Escape Stasis . | . . . . . Rewire . | . . . . . Trap . | . . . . . Miscellaneous . | . . . . . Route ------- -11/Scrapyard -10/Materials (discovered 4 exits: *Mat x3 / *Min) -10/Mines (discovered 3 exits: *Mat x2 / *Exi) -10/Exiles (discovered 2 exits: [*Min x2]) -9/Mines History --------- Turn | Location | Event 42 | -11/Scrapyard | Discovered new exit (range 15) 79 | -11/Scrapyard | Entered Materials 196 | -10/Materials | Discovered new exit (range 10) 311 | -10/Materials | Build established: Mutant 337 | -10/Materials | Discovered new exit (range 16) 693 | -10/Materials | Discovered new exit (range 16) 802 | -10/Materials | Discovered new exit (range 16) 1064 | -10/Materials | Identified exit to Mines 1116 | -10/Materials | Entered Mines 1268 | -10/Mines | Found a damaged Exp. Sensor Array with a note attached 1271 | -10/Mines | Found Prototype Device 1289 | -10/Mines | Learned 2 Materials zone layouts 1309 | -10/Mines | Discovered new exit (range 8) 1333 | -10/Mines | Identified exit to Materials 1398 | -10/Mines | Core integrity fell below 50% 1478 | -10/Mines | Discovered exit to Materials (range 14) 1617 | -10/Mines | Met a Derelict testing a Signal Generator 1630 | -10/Mines | Found Signal Generator 1840 | -10/Mines | Build established: Scavenger-Mutant 2033 | -10/Mines | Found a hidden stash of uninstalled traps 2116 | -10/Mines | Deemed a non-threat by the Exiles lab entrance 2116 | -10/Mines | Discovered new exit (range 5) 2130 | -10/Mines | Entered Exiles 2154 | -10/Exiles | Discovered new exit (range 15) 2180 | -10/Exiles | Met 8R-AWN 2204 | -10/Exiles | Met EX-HEX 2252 | -10/Exiles | Met EX-BIN 2295 | -10/Exiles | Aligned with FarCom system 2297 | -10/Exiles | Given EX-Vault access code 2334 | -10/Exiles | Opened EX-Vault 2347 | -10/Exiles | Identified Exp. Sensor Array 2355 | -10/Exiles | Found Cloak of Protection 2389 | -10/Exiles | Warned to stay clear of 0b10 Research branches 2431 | -10/Exiles | Met EX-DEC 2517 | -10/Exiles | Learned location of Zion (-6) 2574 | -10/Exiles | Discovered new exit (range 11) 2592 | -10/Exiles | Left Exiles lab with Cloak of Protection 2592 | -10/Exiles | Entered Mines 2661 | -9/Mines | Excavation squad dispatched 2661 | -9/Mines | A large section of the Mines collapsed 2911 | -9/Mines | Excavation squad dispatched 3125 | -9/Mines | Core integrity fell below 20% 3161 | -9/Mines | Excavation squad dispatched 3337 | -9/Mines | Destroyed by G-34 Mercenary with Small Laser Last Messages --------------- 03096_ R-06 Scavenger collects Sml. Laser. 03100_ T-07 Excavator is excavating. 03100_ U-05 Engineer lays Concrete. 03100_ R-06 Scavenger collects Ion Engine. 03103_ R-06 Scavenger collects Heat Sink. 03117_ T-07 Excavator is excavating. 03122_ U-05 Engineer lays Concrete. 03122_ U-05 Engineer destroyed. 03148_ EM Pulse Gun destroyed. 03155_ as-88931 suffers critical hit (Burn). 03161_ ALERT: Derelict activity in mines confirmed. Dispatching additional escorted excavation squad. 03165_ as-88931 destroyed. 03222_ T-07 Excavator is excavating. 03280_ U-05 Engineer lays Concrete. 03294_ K-01 Serf collects debris. 03333_ G-34 Mercenary destroyed. 03334_ K-01 Serf collects debris. 03335_ T-07 Excavator destroyed. Map ----- +----------------------------------------------------+ | ?????????????????????????????????????????????????? | | ?????????????????????????????????????????????????? | | ?????????????????????????????????????????????????? | | ????####?????????????????????????????????????????? | | ?#### ##????????????????????????????????????????? | | ## #????????????????????????????????????????? | | # #????????????????????????????????????????? | | # ###### #????????????????????????????????? | | #????????????????????????????????? | | #????????????????????????????????? | | # ##########????????????????????????????????? | | # ## #?### ##?????????????????????????????????? | | ###?# ### #?????????????????????????????????? | | ????# #?????????????????????????????????? | | ???## ## #?????????????????????????????????? | | ???# #### ######????????????????????????????? | | ??# ##??# ## #############????????????????? | | ?# #???# g g #????????????????? | | ?# #???# ########### #????????????????? | | ?## ##???## #?????????#g#????????????????? | | ??######?????## ##?????????# #????????????????? | | ??????????????######?????????##!#????????????????? | | ?????????????????????????#####%g##???????????????? | | ???????????????????###??## =%%g%=##??????????????? | | ???????????????????#"#??#=%|==!!| ##?????????????? | | ???????????????????#!####@;t%*t #?????????????? | | ???????????????????# %! % % ; ##?????????????? | | ???????????????????###|#### k t ##??????????????? | | ?????????????????????###??## ##???????????????? | | ???????????????????????????## ##????????????????? | | ????????????????????????????####?????????????????? | | ?????????????????????????????????????????????????? | | ?????????????????????????????????????????????????? | | ?????????????????????????????????????????????????? | | | | | | | | | | | | | | | | | | | | | | | | | | | | | | | | | +----------------------------------------------------+ Best States ------------- Heat Dissipation 39 Energy Generation 12 Energy Capacity 265 Matter Stores 300 Matter Capacity 300 Sight Range 16 Terrain Scan Density 10 Evasion (%) 55 Recoil Reduction 2 Item Schematics ----------------- None Robot Schematics ------------------ None Fabricated ------------ Nothing Alien Tech Used ----------------- None Achievements -------------- None Challenges ------------ None Game ------ Seed SiegeTripodChronowheel Manual? 0 Play Time 00:25:46 Cumulative 10.5 hours Start 2024.08.15 @ 12:46:46 End 2024.08.15 @ 13:09:15 Sessions 1 Manual Loads 0 Difficulty Rogue Special Mode None Game No. 8 Rogue 8 Adventurer 0 Explorer 0 Win Type - Total 0 Types 0/0/0/0/0/0/0/0/0 Lore% 9 Gallery% 14 Achievement% 23 Wizard Run 0 Options --------- Layout 1 ASCII 0 Keyboard 0 Movement Numpad Keybinds 0 Fullscreen 1 Font 24/Smallcaps Map View 50x35 Zoom Use 0% Tactical HUD 1 Map Filters NONE Filters NONE Steam 0 RUN: 9035bd89-d900-45aa-8069-a183bda1833a